[Event "Live Chess"]
[Site "Chess.com"]
[Date "2023.05.21"]
[Round "-"]
[White "SupremeTactician"]
[Black "domrobson"]
[Result "0-1"]
[WhiteElo "2228"]
[BlackElo "1712"]
[TimeControl "300"]
[EndTime "3:01:30 PDT"]
[Termination "domrobson won by resignation"]

1. e4 {[%clk 0:04:59.9]} 1... e5 {[%clk 0:04:58.3]} 2. Nf3 {[%clk 0:04:57.8]}
2... Nc6 {[%clk 0:04:57.8]} 3. Nc3 {[%clk 0:04:57.2]} 3... Nf6 {[%clk
0:04:56.7]} 4. Bb5 {[%clk 0:04:57]} 4... Bd6 {[%clk 0:04:53.9]} 5. O-O {[%clk
0:04:55.9]} 5... O-O {[%clk 0:04:52.8]} 6. d3 {[%clk 0:04:55.1]} 6... h6 {[%clk
0:04:51.2]} 7. h3 {[%clk 0:04:53.1]} 7... a6 {[%clk 0:04:49.6]} 8. Bxc6 {[%clk
0:04:50.7]} 8... dxc6 {[%clk 0:04:49.5]} 9. Ne2 {[%clk 0:04:50.1]} 9... Kh7
{[%clk 0:04:43.5]} 10. Ng3 {[%clk 0:04:48.5]} 10... g6 {[%clk 0:04:28.1]} 11.
Qd2 {[%clk 0:04:44]} 11... Ng8 {[%clk 0:04:26.5]} 12. Qe2 {[%clk 0:04:37.8]}
12... f5 {[%clk 0:04:24.5]} 13. exf5 {[%clk 0:04:37.2]} 13... Bxf5 {[%clk
0:04:19]} 14. Nxe5 {[%clk 0:04:36.2]} 14... Re8 {[%clk 0:04:16.3]} 15. f4 {[%clk
0:04:31.3]} 15... Bc5+ {[%clk 0:04:08.5]} 16. Be3 {[%clk 0:04:29]} 16... Bxe3+
{[%clk 0:04:04.9]} 17. Qxe3 {[%clk 0:04:28.9]} 17... Qf6 {[%clk 0:04:01.7]} 18.
Nxf5 {[%clk 0:04:25.2]} 18... Qxf5 {[%clk 0:04:00.4]} 19. g4 {[%clk 0:04:24.2]}
19... Qf6 {[%clk 0:03:54.6]} 20. Rae1 {[%clk 0:04:23]} 20... Rad8 {[%clk
0:03:50.5]} 21. Nd7 {[%clk 0:04:10.5]} 21... Qd6 {[%clk 0:03:37.7]} 22. Ne5
{[%clk 0:04:08]} 22... Qd4 {[%clk 0:03:31.7]} 23. Qxd4 {[%clk 0:04:06.2]} 23...
Rxd4 {[%clk 0:03:30.3]} 24. Re3 {[%clk 0:04:00.6]} 24... Nf6 {[%clk 0:03:27.7]}
25. c3 {[%clk 0:03:58.6]} 25... Rd6 {[%clk 0:03:14.5]} 26. c4 {[%clk 0:03:52.2]}
26... Rd4 {[%clk 0:03:12.4]} 27. Kf2 {[%clk 0:03:43.4]} 27... Rxf4+ {[%clk
0:03:08.3]} 28. Kg2 {[%clk 0:03:40.2]} 28... Rxf1 {[%clk 0:03:05.6]} 29. Kxf1
{[%clk 0:03:40.1]} 29... Nd7 {[%clk 0:03:02.9]} 30. d4 {[%clk 0:03:32.6]} 30...
c5 {[%clk 0:02:54.2]} 31. Re2 {[%clk 0:03:22.5]} 31... Nxe5 {[%clk 0:02:48.5]}
32. Rxe5 {[%clk 0:03:21.6]} 32... Rxe5 {[%clk 0:02:45.8]} 33. dxe5 {[%clk
0:03:21.5]} 33... Kg7 {[%clk 0:02:44.7]} 34. Ke2 {[%clk 0:03:20.5]} 34... Kf7
{[%clk 0:02:44.5]} 35. Ke3 {[%clk 0:03:19.8]} 35... Ke6 {[%clk 0:02:44.1]} 36.
Ke4 {[%clk 0:03:19.6]} 36... g5 {[%clk 0:02:42.2]} 37. a4 {[%clk 0:03:03.7]}
37... b6 {[%clk 0:02:37.5]} 38. b3 {[%clk 0:02:59]} 38... c6 {[%clk 0:02:34.5]}
39. Ke3 {[%clk 0:02:58]} 39... Kxe5 {[%clk 0:02:31.4]} 40. Kf3 {[%clk
0:02:56.8]} 40... Kd4 {[%clk 0:02:28.9]} 41. Kg3 {[%clk 0:02:54.7]} 41... b5
{[%clk 0:02:20.9]} 42. axb5 {[%clk 0:02:53.6]} 42... cxb5 {[%clk 0:02:18.1]} 43.
h4 {[%clk 0:02:53.2]} 43... bxc4 {[%clk 0:02:14.9]} 44. bxc4 {[%clk 0:02:53.1]}
44... a5 {[%clk 0:02:14.1]} 45. hxg5 {[%clk 0:02:52.8]} 45... hxg5 {[%clk
0:02:12.8]} 0-1

[Event "Live Chess"]
[Site "Chess.com"]
[Date "2023.05.21"]
[Round "-"]
[White "Davidagye"]
[Black "LiamClery2020"]
[Result "0-1"]
[WhiteElo "1668"]
[BlackElo "1985"]
[TimeControl "300"]
[EndTime "3:01:37 PDT"]
[Termination "LiamClery2020 won by checkmate"]

1. b4 {[%clk 0:04:58.3]} 1... Nf6 {[%clk 0:04:59.9]} 2. Bb2 {[%clk 0:04:56.5]}
2... e6 {[%clk 0:04:57.7]} 3. a3 {[%clk 0:04:54.7]} 3... a5 {[%clk 0:04:56.9]}
4. b5 {[%clk 0:04:53.3]} 4... d5 {[%clk 0:04:56.4]} 5. e3 {[%clk 0:04:52.3]}
5... c6 {[%clk 0:04:55.2]} 6. Nf3 {[%clk 0:04:51.7]} 6... Bd7 {[%clk 0:04:53.2]}
7. a4 {[%clk 0:04:50.4]} 7... c5 {[%clk 0:04:52.4]} 8. Be2 {[%clk 0:04:49.1]}
8... Bd6 {[%clk 0:04:51.6]} 9. O-O {[%clk 0:04:47.8]} 9... O-O {[%clk
0:04:51.3]} 10. c4 {[%clk 0:04:40.6]} 10... Re8 {[%clk 0:04:49.8]} 11. cxd5
{[%clk 0:04:32.8]} 11... exd5 {[%clk 0:04:49.7]} 12. d4 {[%clk 0:04:32.3]} 12...
c4 {[%clk 0:04:47.3]} 13. Nc3 {[%clk 0:04:30.6]} 13... b6 {[%clk 0:04:44.8]} 14.
Nd2 {[%clk 0:04:27.6]} 14... Qc7 {[%clk 0:04:42.3]} 15. h3 {[%clk 0:04:17.1]}
15... Qc8 {[%clk 0:04:38.5]} 16. Bf3 {[%clk 0:04:13.8]} 16... Bxh3 {[%clk
0:04:33.1]} 17. gxh3 {[%clk 0:04:12.4]} 17... Qxh3 {[%clk 0:04:31.9]} 18. Re1
{[%clk 0:04:05.5]} 18... Bh2+ {[%clk 0:04:30.5]} 19. Kh1 {[%clk 0:04:03.9]}
19... Bg3+ {[%clk 0:04:30.4]} 20. Kg1 {[%clk 0:04:02.7]} 20... Qh2+ {[%clk
0:04:30.3]} 21. Kf1 {[%clk 0:04:02.1]} 21... Qxf2# {[%clk 0:04:30.2]} 0-1

[Event "Live Chess"]
[Site "Chess.com"]
[Date "2023.05.21"]
[Round "-"]
[White "WombatIn_A_Box"]
[Black "Crowded_House"]
[Result "1-0"]
[WhiteElo "570"]
[BlackElo "1650"]
[TimeControl "300"]
[EndTime "3:01:38 PDT"]
[Termination "WombatIn_A_Box won by checkmate"]

1. d4 {[%clk 0:04:51]} 1... e6 {[%clk 0:04:58.5]} 2. e4 {[%clk 0:04:49.9]} 2...
d5 {[%clk 0:04:57.5]} 3. Nc3 {[%clk 0:04:45.4]} 3... Bb4 {[%clk 0:04:54.6]} 4.
a3 {[%clk 0:04:42.5]} 4... Bxc3+ {[%clk 0:04:52]} 5. bxc3 {[%clk 0:04:42.4]}
5... dxe4 {[%clk 0:04:50]} 6. c4 {[%clk 0:04:40.6]} 6... Nf6 {[%clk 0:04:46.1]}
7. f4 {[%clk 0:04:37.1]} 7... exf3 {[%clk 0:04:43.1]} 8. Nxf3 {[%clk 0:04:28.3]}
8... O-O {[%clk 0:04:40.3]} 9. Ne5 {[%clk 0:04:26.9]} 9... Nbd7 {[%clk
0:04:33.9]} 10. Nxd7 {[%clk 0:04:25.2]} 10... Bxd7 {[%clk 0:04:26.3]} 11. Rg1
{[%clk 0:04:24.2]} 11... Ba4 {[%clk 0:04:23.4]} 12. Ra2 {[%clk 0:04:20.5]} 12...
Qd7 {[%clk 0:04:18.1]} 13. g4 {[%clk 0:04:11.4]} 13... Rad8 {[%clk 0:04:15]} 14.
g5 {[%clk 0:04:09.5]} 14... Ne4 {[%clk 0:04:11.9]} 15. Bd3 {[%clk 0:04:04.2]}
15... Qxd4 {[%clk 0:03:51.7]} 16. Qg4 {[%clk 0:03:56.8]} 16... Qc3+ {[%clk
0:03:26.8]} 17. Ke2 {[%clk 0:03:44.2]} 17... Rd4 {[%clk 0:02:50.2]} 18. g6
{[%clk 0:03:40.6]} 18... Nf6 {[%clk 0:02:24.4]} 19. gxh7+ {[%clk 0:03:35.5]}
19... Kh8 {[%clk 0:02:11.3]} 20. Qxg7# {[%clk 0:03:32.9]} 1-0

[Event "Live Chess"]
[Site "Chess.com"]
[Date "2023.05.21"]
[Round "-"]
[White "Ian-Morley"]
[Black "Greenbecker"]
[Result "0-1"]
[WhiteElo "1049"]
[BlackElo "1645"]
[TimeControl "300"]
[EndTime "3:02:00 PDT"]
[Termination "Greenbecker won by resignation"]

1. e4 {[%clk 0:04:58.1]} 1... e6 {[%clk 0:04:59.1]} 2. d4 {[%clk 0:04:57]} 2...
d5 {[%clk 0:04:58.7]} 3. e5 {[%clk 0:04:56.3]} 3... c5 {[%clk 0:04:57.3]} 4. c3
{[%clk 0:04:55.7]} 4... Nc6 {[%clk 0:04:56.6]} 5. Nd2 {[%clk 0:04:55.1]} 5...
cxd4 {[%clk 0:04:55]} 6. cxd4 {[%clk 0:04:54.5]} 6... Nxd4 {[%clk 0:04:52.5]} 7.
Qa4+ {[%clk 0:04:53.4]} 7... Nc6 {[%clk 0:04:51.3]} 8. Bb5 {[%clk 0:04:52.4]}
8... Bd7 {[%clk 0:04:50.4]} 9. Bxc6 {[%clk 0:04:51.8]} 9... Bxc6 {[%clk
0:04:49.5]} 10. Qd1 {[%clk 0:04:46.9]} 10... Qc7 {[%clk 0:04:48]} 11. b3 {[%clk
0:04:45.2]} 11... Qxe5+ {[%clk 0:04:46.6]} 12. Qe2 {[%clk 0:04:44.7]} 12... Qxa1
{[%clk 0:04:45.4]} 13. Ndf3 {[%clk 0:04:41.1]} 13... Qxc1+ {[%clk 0:04:43.5]}
0-1

[Event "Live Chess"]
[Site "Chess.com"]
[Date "2023.05.21"]
[Round "-"]
[White "wadsy27"]
[Black "MarkLim1"]
[Result "1-0"]
[WhiteElo "2556"]
[BlackElo "1723"]
[TimeControl "300"]
[EndTime "3:02:17 PDT"]
[Termination "wadsy27 won by resignation"]

1. d4 {[%clk 0:04:57.4]} 1... Nf6 {[%clk 0:04:59.3]} 2. c4 {[%clk 0:04:55.9]}
2... e6 {[%clk 0:04:58.9]} 3. Nf3 {[%clk 0:04:55]} 3... d5 {[%clk 0:04:58.3]} 4.
Nc3 {[%clk 0:04:52.6]} 4... c5 {[%clk 0:04:57.1]} 5. cxd5 {[%clk 0:04:50.9]}
5... Nxd5 {[%clk 0:04:56.1]} 6. e4 {[%clk 0:04:49.3]} 6... Nxc3 {[%clk
0:04:55.6]} 7. bxc3 {[%clk 0:04:49.2]} 7... cxd4 {[%clk 0:04:54.7]} 8. cxd4
{[%clk 0:04:48.4]} 8... Bb4+ {[%clk 0:04:54.2]} 9. Bd2 {[%clk 0:04:47.8]} 9...
Bxd2+ {[%clk 0:04:54.1]} 10. Qxd2 {[%clk 0:04:47]} 10... O-O {[%clk 0:04:52.5]}
11. Bc4 {[%clk 0:04:46]} 11... Nd7 {[%clk 0:04:51.6]} 12. O-O {[%clk 0:04:44.7]}
12... b6 {[%clk 0:04:50.9]} 13. Rfe1 {[%clk 0:04:43.6]} 13... Bb7 {[%clk
0:04:49.5]} 14. Rad1 {[%clk 0:04:42.7]} 14... Rc8 {[%clk 0:04:48.5]} 15. Bb3
{[%clk 0:04:41.9]} 15... Nf6 {[%clk 0:04:45]} 16. d5 {[%clk 0:04:33.7]} 16...
exd5 {[%clk 0:04:39.8]} 17. e5 {[%clk 0:04:32.8]} 17... Ne4 {[%clk 0:04:35.4]}
18. Qf4 {[%clk 0:04:30.5]} 18... Nc5 {[%clk 0:04:24.3]} 19. Bc2 {[%clk
0:04:24.6]} 19... Qe7 {[%clk 0:04:03.5]} 20. Bxh7+ {[%clk 0:04:08.5]} 20... Kxh7
{[%clk 0:04:00.8]} 21. Ng5+ {[%clk 0:04:05.8]} 21... Kg6 {[%clk 0:03:49.8]} 22.
Re3 {[%clk 0:03:50]} 22... Ne6 {[%clk 0:02:59.8]} 23. Nxe6 {[%clk 0:03:47.5]}
23... Qxe6 {[%clk 0:02:58.9]} 24. Qh4 {[%clk 0:03:32.1]} 24... f6 {[%clk
0:02:49.8]} 25. exf6 {[%clk 0:03:17.5]} 25... Qxf6 {[%clk 0:02:31.5]} 26. Rg3+
{[%clk 0:03:16.1]} 26... Kf7 {[%clk 0:02:30.7]} 27. Rf3 {[%clk 0:03:14.9]} 27...
Rc4 {[%clk 0:02:28.7]} 28. Rxf6+ {[%clk 0:03:12.7]} 28... gxf6 {[%clk
0:02:27.8]} 29. Qh7+ {[%clk 0:03:12.3]} 1-0

[Event "Live Chess"]
[Site "Chess.com"]
[Date "2023.05.21"]
[Round "-"]
[White "McSlash1"]
[Black "Tushinskiy"]
[Result "0-1"]
[WhiteElo "1996"]
[BlackElo "2160"]
[TimeControl "300"]
[EndTime "3:02:49 PDT"]
[Termination "Tushinskiy won by resignation"]

1. e4 {[%clk 0:04:58.8]} 1... e5 {[%clk 0:04:58.9]} 2. Nf3 {[%clk 0:04:57.6]}
2... d6 {[%clk 0:04:58.8]} 3. d4 {[%clk 0:04:56.6]} 3... Bg4 {[%clk 0:04:57.9]}
4. dxe5 {[%clk 0:04:55.6]} 4... Nd7 {[%clk 0:04:57.4]} 5. Bc4 {[%clk 0:04:53.7]}
5... dxe5 {[%clk 0:04:52.7]} 6. Nc3 {[%clk 0:04:52.3]} 6... c6 {[%clk
0:04:51.6]} 7. h3 {[%clk 0:04:42]} 7... Bh5 {[%clk 0:04:46.6]} 8. Bg5 {[%clk
0:04:39.4]} 8... Qb6 {[%clk 0:04:39.6]} 9. Qd2 {[%clk 0:04:32.2]} 9... Bxf3
{[%clk 0:04:36.6]} 10. gxf3 {[%clk 0:04:32.1]} 10... Ngf6 {[%clk 0:04:35.8]} 11.
Rd1 {[%clk 0:04:30.6]} 11... Bb4 {[%clk 0:04:32.3]} 12. Bxf6 {[%clk 0:04:27.8]}
12... Nxf6 {[%clk 0:04:30.1]} 13. Rg1 {[%clk 0:04:23.3]} 13... Kf8 {[%clk
0:04:13.8]} 14. a3 {[%clk 0:04:13.4]} 14... Bxc3 {[%clk 0:04:12.1]} 15. Qxc3
{[%clk 0:04:13.3]} 15... Re8 {[%clk 0:04:08.9]} 16. Qd2 {[%clk 0:04:09.9]} 16...
h6 {[%clk 0:04:06.3]} 17. f4 {[%clk 0:04:07.8]} 17... exf4 {[%clk 0:04:04]} 18.
f3 {[%clk 0:04:06.7]} 18... Qxg1+ {[%clk 0:04:01.9]} 0-1

[Event "Live Chess"]
[Site "Chess.com"]
[Date "2023.05.21"]
[Round "-"]
[White "ranvir123"]
[Black "Tech_Titan"]
[Result "1-0"]
[WhiteElo "950"]
[BlackElo "935"]
[TimeControl "300"]
[EndTime "3:02:54 PDT"]
[Termination "ranvir123 won by checkmate"]

1. e4 {[%clk 0:04:58.6]} 1... e5 {[%clk 0:04:58.6]} 2. Nf3 {[%clk 0:04:56.8]}
2... Nc6 {[%clk 0:04:56]} 3. Bc4 {[%clk 0:04:54.8]} 3... h6 {[%clk 0:04:49.3]}
4. d4 {[%clk 0:04:47]} 4... Nxd4 {[%clk 0:04:46.3]} 5. Nxe5 {[%clk 0:04:42.8]}
5... Nc6 {[%clk 0:04:43]} 6. Nxf7 {[%clk 0:04:38.2]} 6... Qh4 {[%clk 0:04:26.9]}
7. Nxh8 {[%clk 0:04:31.8]} 7... Qxe4+ {[%clk 0:04:25]} 8. Qe2 {[%clk 0:04:23]}
8... Qxe2+ {[%clk 0:04:18.8]} 9. Bxe2 {[%clk 0:04:21.7]} 9... Nge7 {[%clk
0:04:10]} 10. Bb5 {[%clk 0:04:18.7]} 10... g6 {[%clk 0:04:04.5]} 11. Bxc6 {[%clk
0:04:16.4]} 11... bxc6 {[%clk 0:04:02.8]} 12. O-O {[%clk 0:04:11]} 12... Bg7
{[%clk 0:04:02.2]} 13. Nxg6 {[%clk 0:04:06.9]} 13... Nxg6 {[%clk 0:04:00.5]} 14.
Re1+ {[%clk 0:04:05.5]} 14... Kd8 {[%clk 0:03:59.3]} 15. Nc3 {[%clk 0:04:02.4]}
15... d5 {[%clk 0:03:54.8]} 16. Bf4 {[%clk 0:03:56.5]} 16... Nxf4 {[%clk
0:03:46.3]} 17. g3 {[%clk 0:03:52.7]} 17... Ng6 {[%clk 0:03:43.1]} 18. Rad1
{[%clk 0:03:50.5]} 18... Bd7 {[%clk 0:03:41.2]} 19. Rd3 {[%clk 0:03:44]} 19...
Rb8 {[%clk 0:03:39.5]} 20. Na4 {[%clk 0:03:29.3]} 20... Bf6 {[%clk 0:03:24.6]}
21. Red1 {[%clk 0:03:21.7]} 21... Bf5 {[%clk 0:03:21.4]} 22. R3d2 {[%clk
0:03:18.1]} 22... Bg4 {[%clk 0:03:18]} 23. Re1 {[%clk 0:03:14.2]} 23... Rb4
{[%clk 0:03:10.9]} 24. b3 {[%clk 0:02:58.2]} 24... Kc8 {[%clk 0:03:01.1]} 25.
Nc5 {[%clk 0:02:53.4]} 25... Bc3 {[%clk 0:02:54.7]} 26. Re8# {[%clk 0:02:49]}
1-0

[Event "Live Chess"]
[Site "Chess.com"]
[Date "2023.05.21"]
[Round "-"]
[White "Brooms1989"]
[Black "JackCheetham1"]
[Result "1-0"]
[WhiteElo "1124"]
[BlackElo "1688"]
[TimeControl "300"]
[EndTime "3:03:06 PDT"]
[Termination "Brooms1989 won on time"]

1. e4 {[%clk 0:04:55.3]} 1... c5 {[%clk 0:04:56.6]} 2. Nc3 {[%clk 0:04:54.5]}
2... d6 {[%clk 0:04:55.7]} 3. f4 {[%clk 0:04:53.6]} 3... Nf6 {[%clk 0:04:54.1]}
4. Nf3 {[%clk 0:04:52.5]} 4... Bg4 {[%clk 0:04:53.5]} 5. h3 {[%clk 0:04:49.6]}
5... Bxf3 {[%clk 0:04:51.2]} 6. Qxf3 {[%clk 0:04:49.1]} 6... Nc6 {[%clk
0:04:50.4]} 7. d3 {[%clk 0:04:38.1]} 7... Nd4 {[%clk 0:04:49.1]} 8. Qd1 {[%clk
0:04:37.7]} 8... e6 {[%clk 0:04:47]} 9. Ne2 {[%clk 0:04:36.4]} 9... Be7 {[%clk
0:04:42.3]} 10. Nxd4 {[%clk 0:04:35.1]} 10... cxd4 {[%clk 0:04:42.2]} 11. Be2
{[%clk 0:04:32.3]} 11... O-O {[%clk 0:04:36]} 12. O-O {[%clk 0:04:31.3]} 12...
Qb6 {[%clk 0:04:26.2]} 13. Kh1 {[%clk 0:04:29.4]} 13... h6 {[%clk 0:04:21.8]}
14. Qe1 {[%clk 0:04:22]} 14... Rac8 {[%clk 0:04:11.9]} 15. e5 {[%clk 0:04:14.5]}
15... dxe5 {[%clk 0:04:06.5]} 16. fxe5 {[%clk 0:04:14.4]} 16... Nd5 {[%clk
0:04:00.8]} 17. Qg3 {[%clk 0:04:08.7]} 17... Kh8 {[%clk 0:03:43.7]} 18. Bd1
{[%clk 0:03:29.1]} 18... Ne3 {[%clk 0:03:33.5]} 19. Bxe3 {[%clk 0:03:25.3]}
19... dxe3 {[%clk 0:03:33.4]} 20. b3 {[%clk 0:03:23.8]} 20... Qd4 {[%clk
0:03:22.7]} 21. Bf3 {[%clk 0:03:11.3]} 21... Rxc2 {[%clk 0:02:51.4]} 22. Bxb7
{[%clk 0:02:52.4]} 22... Qxd3 {[%clk 0:02:26.4]} 23. Rfd1 {[%clk 0:02:32.7]}
23... Rd2 {[%clk 0:02:13.8]} 24. Rxd2 {[%clk 0:02:22.5]} 24... Qxd2 {[%clk
0:02:12.3]} 25. Qe1 {[%clk 0:02:11.3]} 25... Rd8 {[%clk 0:01:56.1]} 26. Bf3
{[%clk 0:02:03.7]} 26... Bb4 {[%clk 0:01:46.5]} 27. Qxd2 {[%clk 0:01:59]} 27...
exd2 {[%clk 0:01:44.8]} 28. Rd1 {[%clk 0:01:57.5]} 28... Rc8 {[%clk 0:01:40.4]}
29. Kh2 {[%clk 0:01:54.8]} 29... Rc1 {[%clk 0:01:36.1]} 30. Kg3 {[%clk
0:01:51.4]} 30... Bc3 {[%clk 0:01:24.2]} 31. Kf2 {[%clk 0:01:36.1]} 31... f6
{[%clk 0:00:51.5]} 32. exf6 {[%clk 0:01:20.3]} 32... gxf6 {[%clk 0:00:51.4]} 33.
Ke2 {[%clk 0:01:14.5]} 33... Rxd1 {[%clk 0:00:30]} 34. Kxd1 {[%clk 0:01:10.4]}
34... e5 {[%clk 0:00:26.3]} 35. Kc2 {[%clk 0:01:08.2]} 35... Ba5 {[%clk
0:00:24.5]} 36. Bd1 {[%clk 0:01:05.8]} 36... f5 {[%clk 0:00:21.7]} 37. Kd3
{[%clk 0:01:04.4]} 37... e4+ {[%clk 0:00:19.7]} 38. Ke3 {[%clk 0:01:03.7]} 38...
Kg7 {[%clk 0:00:18.1]} 39. a3 {[%clk 0:00:56.6]} 39... Bc3 {[%clk 0:00:13.3]}
40. b4 {[%clk 0:00:55.2]} 40... Kf6 {[%clk 0:00:11.8]} 41. b5 {[%clk 0:00:51.2]}
41... Ke5 {[%clk 0:00:10.6]} 42. a4 {[%clk 0:00:50.5]} 42... f4+ {[%clk
0:00:09.9]} 43. Ke2 {[%clk 0:00:49.1]} 43... e3 {[%clk 0:00:05.7]} 44. h4 {[%clk
0:00:45.2]} 44... Ke4 {[%clk 0:00:04.3]} 45. h5 {[%clk 0:00:44.5]} 45... Bb4
{[%clk 0:00:02.7]} 46. Bc2+ {[%clk 0:00:40.9]} 46... Ke5 {[%clk 0:00:01.9]} 47.
Bd1 {[%clk 0:00:39.9]} 47... Kd4 {[%clk 0:00:01.8]} 48. Bc2 {[%clk 0:00:38.9]}
48... Ba5 {[%clk 0:00:01.7]} 49. Bb3 {[%clk 0:00:33.3]} 49... Bb6 {[%clk
0:00:01.6]} 50. Bd1 {[%clk 0:00:31.1]} 50... Kc3 {[%clk 0:00:01.5]} 51. a5
{[%clk 0:00:27.3]} 51... Kb2 {[%clk 0:00:01.4]} 52. axb6 {[%clk 0:00:26.3]}
52... Ka3 {[%clk 0:00:01.3]} 53. b7 {[%clk 0:00:25.3]} 1-0

[Event "Live Chess"]
[Site "Chess.com"]
[Date "2023.05.21"]
[Round "-"]
[White "smoggyrabbit"]
[Black "TKDRyan"]
[Result "1-0"]
[WhiteElo "1707"]
[BlackElo "1130"]
[TimeControl "300"]
[EndTime "3:03:11 PDT"]
[Termination "smoggyrabbit won by resignation"]

1. d4 {[%clk 0:04:58.5]} 1... d5 {[%clk 0:04:56.1]} 2. Nf3 {[%clk 0:04:57.4]}
2... Nc6 {[%clk 0:04:51.6]} 3. e3 {[%clk 0:04:56.2]} 3... Nf6 {[%clk 0:04:50.8]}
4. Nbd2 {[%clk 0:04:45.5]} 4... Bf5 {[%clk 0:04:49.5]} 5. Nh4 {[%clk 0:04:43.3]}
5... Bg6 {[%clk 0:04:47.3]} 6. Nxg6 {[%clk 0:04:42.2]} 6... hxg6 {[%clk
0:04:46]} 7. Bd3 {[%clk 0:04:41.4]} 7... e6 {[%clk 0:04:43.2]} 8. O-O {[%clk
0:04:39.7]} 8... a6 {[%clk 0:04:41.8]} 9. Nf3 {[%clk 0:04:34.8]} 9... Qd6 {[%clk
0:04:37.6]} 10. b3 {[%clk 0:04:26.8]} 10... Nb4 {[%clk 0:04:33.5]} 11. Bb2
{[%clk 0:04:17.2]} 11... Nxd3 {[%clk 0:04:31.8]} 12. Qxd3 {[%clk 0:04:16.3]}
12... Ng4 {[%clk 0:04:31.3]} 13. h3 {[%clk 0:04:12]} 13... Nf6 {[%clk
0:04:12.2]} 14. c4 {[%clk 0:04:09.2]} 14... dxc4 {[%clk 0:04:10.8]} 15. bxc4
{[%clk 0:04:07.5]} 15... O-O-O {[%clk 0:03:59.7]} 16. c5 {[%clk 0:03:54.8]}
16... Qc6 {[%clk 0:03:51.3]} 17. Ne5 {[%clk 0:03:48.3]} 17... Qe8 {[%clk
0:03:36.5]} 18. c6 {[%clk 0:03:38.9]} 18... Nd5 {[%clk 0:03:29.9]} 19. cxb7+
{[%clk 0:03:35.3]} 19... Kxb7 {[%clk 0:03:27.8]} 20. Rab1 {[%clk 0:03:16.8]}
20... Nb6 {[%clk 0:03:22.1]} 21. Bc3 {[%clk 0:02:29.2]} 21... Rd6 {[%clk
0:03:14.6]} 22. Nc4 {[%clk 0:02:04.4]} 22... Rc6 {[%clk 0:03:07.5]} 23. Na5+
{[%clk 0:02:03.1]} 23... Ka7 {[%clk 0:03:01.6]} 24. Nxc6+ {[%clk 0:02:00.2]}
24... Qxc6 {[%clk 0:02:59.7]} 25. Rfc1 {[%clk 0:01:52]} 25... Qa4 {[%clk
0:02:41.5]} 26. Be1 {[%clk 0:01:23.4]} 26... Ba3 {[%clk 0:02:35.2]} 27. Rxc7+
{[%clk 0:01:15.4]} 27... Kb8 {[%clk 0:02:29.4]} 28. Rxf7 {[%clk 0:01:08.2]}
28... Qa5 {[%clk 0:02:19.4]} 29. Bxa5 {[%clk 0:01:05.9]} 1-0

[Event "Live Chess"]
[Site "Chess.com"]
[Date "2023.05.21"]
[Round "-"]
[White "Geomorph"]
[Black "raminguy"]
[Result "0-1"]
[WhiteElo "1271"]
[BlackElo "1956"]
[TimeControl "300"]
[EndTime "3:03:12 PDT"]
[Termination "raminguy won by resignation"]

1. e4 {[%clk 0:04:59.2]} 1... e5 {[%clk 0:04:59.1]} 2. Nf3 {[%clk 0:04:58.3]}
2... Nc6 {[%clk 0:04:58.3]} 3. Bc4 {[%clk 0:04:57.6]} 3... Bc5 {[%clk
0:04:57.5]} 4. O-O {[%clk 0:04:56.1]} 4... Nf6 {[%clk 0:04:56.7]} 5. d4 {[%clk
0:04:55.4]} 5... Bxd4 {[%clk 0:04:55.3]} 6. Nxd4 {[%clk 0:04:53.3]} 6... Nxd4
{[%clk 0:04:55]} 7. f4 {[%clk 0:04:51.9]} 7... d6 {[%clk 0:04:54.6]} 8. c3
{[%clk 0:04:38.9]} 8... Nc6 {[%clk 0:04:50.9]} 9. f5 {[%clk 0:04:37.5]} 9... h6
{[%clk 0:04:48.5]} 10. Qe2 {[%clk 0:04:36.1]} 10... O-O {[%clk 0:04:44.6]} 11.
Nd2 {[%clk 0:04:32]} 11... d5 {[%clk 0:04:33.1]} 12. Bb3 {[%clk 0:04:25.2]}
12... dxe4 {[%clk 0:04:19.9]} 13. Nxe4 {[%clk 0:04:23]} 13... Nxe4 {[%clk
0:04:17.6]} 14. Qxe4 {[%clk 0:04:21.9]} 14... Qf6 {[%clk 0:04:05.2]} 15. Be3
{[%clk 0:04:09.9]} 15... Rd8 {[%clk 0:04:00.4]} 16. Rad1 {[%clk 0:03:43.1]}
16... Rxd1 {[%clk 0:03:58]} 17. Bxd1 {[%clk 0:03:43]} 17... Bd7 {[%clk
0:03:49.2]} 18. Bc2 {[%clk 0:03:15.8]} 18... Rd8 {[%clk 0:03:44.3]} 19. Rd1
{[%clk 0:03:14.3]} 19... Be8 {[%clk 0:03:26.5]} 20. Rxd8 {[%clk 0:03:11.6]}
20... Nxd8 {[%clk 0:03:26.4]} 21. Bxa7 {[%clk 0:03:05.9]} 21... b6 {[%clk
0:03:10.9]} 22. Bb8 {[%clk 0:03:04.4]} 22... Qd6 {[%clk 0:03:09.4]} 23. h3
{[%clk 0:02:51.6]} 23... Nc6 {[%clk 0:03:04.2]} 24. Ba4 {[%clk 0:02:43.8]} 24...
Bd7 {[%clk 0:02:47.2]} 25. Bxc6 {[%clk 0:02:34.9]} 25... Bxc6 {[%clk 0:02:45.7]}
26. Qc4 {[%clk 0:02:17.7]} 26... e4 {[%clk 0:02:35.5]} 27. Qd4 {[%clk
0:01:54.6]} 27... Qe7 {[%clk 0:02:31.1]} 28. b4 {[%clk 0:01:43.1]} 28... e3
{[%clk 0:02:28]} 29. Kf1 {[%clk 0:01:39.7]} 29... Bxg2+ {[%clk 0:02:00.5]} 30.
Ke2 {[%clk 0:01:17.2]} 30... Bxh3 {[%clk 0:01:55.9]} 31. Qxe3 {[%clk 0:01:14.7]}
31... Bg4+ {[%clk 0:01:43.3]} 32. Kd2 {[%clk 0:01:11.9]} 32... Qd8+ {[%clk
0:01:41.8]} 33. Qd3 {[%clk 0:01:00.8]} 33... Qxb8 {[%clk 0:01:40.1]} 34. Kc2
{[%clk 0:00:57]} 34... Qc8 {[%clk 0:01:36.3]} 35. Kb3 {[%clk 0:00:55.6]} 35...
Bxf5 {[%clk 0:01:34.5]} 36. Qb5 {[%clk 0:00:51.6]} 36... Be6+ {[%clk 0:01:33.4]}
37. Ka3 {[%clk 0:00:50.2]} 37... Qa8+ {[%clk 0:01:30.5]} 38. Kb2 {[%clk
0:00:49.4]} 38... Qxa2+ {[%clk 0:01:29.2]} 0-1

[Event "Live Chess"]
[Site "Chess.com"]
[Date "2023.05.21"]
[Round "-"]
[White "domrobson"]
[Black "seasidecastle27"]
[Result "0-1"]
[WhiteElo "1707"]
[BlackElo "1892"]
[TimeControl "300"]
[EndTime "3:03:20 PDT"]
[Termination "seasidecastle27 won by resignation"]

1. d4 {[%clk 0:04:58.4]} 1... d5 {[%clk 0:04:56.1]} 2. c4 {[%clk 0:04:57.7]}
2... e6 {[%clk 0:04:54.6]} 3. Nf3 {[%clk 0:04:56.8]} 3... c6 {[%clk 0:04:52.5]}
4. Nc3 {[%clk 0:04:56]} 4... f5 {[%clk 0:04:50.6]} 5. Bf4 {[%clk 0:04:53]} 5...
Nf6 {[%clk 0:04:49.2]} 6. e3 {[%clk 0:04:52.5]} 6... Bd6 {[%clk 0:04:46.5]} 7.
Bxd6 {[%clk 0:04:52]} 7... Qxd6 {[%clk 0:04:45.1]} 8. Bd3 {[%clk 0:04:51.5]}
8... Nbd7 {[%clk 0:04:43.4]} 9. O-O {[%clk 0:04:49.6]} 9... O-O {[%clk
0:04:41.9]} 10. Rc1 {[%clk 0:04:48]} 10... Ne4 {[%clk 0:04:38.7]} 11. Ne1 {[%clk
0:04:45]} 11... Ndf6 {[%clk 0:04:31.4]} 12. f3 {[%clk 0:04:41.3]} 12... Nxc3
{[%clk 0:04:29.2]} 13. Rxc3 {[%clk 0:04:40]} 13... Bd7 {[%clk 0:04:26.6]} 14. f4
{[%clk 0:04:38.7]} 14... Rac8 {[%clk 0:04:20.5]} 15. Qb3 {[%clk 0:04:33.4]}
15... b6 {[%clk 0:04:11.6]} 16. cxd5 {[%clk 0:04:29.8]} 16... Nxd5 {[%clk
0:03:57.6]} 0-1